fUSD/lending_fUSD_20250219
["ID","MTS","AMOUNT","RATE_DAILY","PERIOD"]
[353694339,1739991114175,-1232.61,0.00012188,2]
[353694340,1739991114184,-660.75,0.00012188,2]
[353694341,1739991114194,-722.62,0.00012188,2]
[353694342,1739991114204,-856.89,0.00012188,2]
[353694343,1739991114214,-529.4,0.00012188,2]
[353694344,1739991114223,-500.0,0.00012188,2]
[353694345,1739991114232,-500.0,0.00012188,2]
[353694346,1739991114242,-1123.65,0.00012188,2]
[353694347,1739991114251,-767.14,0.00012188,2]
[353694348,1739991114261,-838.25,0.00012188,2]
[353694349,1739991114271,-857.74,0.00012188,2]
[353694350,1739991114281,-500.0,0.00012188,2]
[353694351,1739991114290,-702.31,0.00012188,2]
[353694352,1739991114300,-766.99,0.00012188,2]
[353694353,1739991114309,-1022.47,0.00012188,2]
[353694354,1739991114318,-1271.18,0.00012188,2]
[353694355,1739991114330,-562.14,0.00012188,2]
[353694356,1739991114339,-1255.93,0.00012188,2]
[353694357,1739991114349,-735.72,0.00012188,2]
[353694358,1739991114358,-1023.77,0.00012188,2]
[353694359,1739991114368,-500.0,0.00012188,2]
[353694360,1739991114377,-741.16,0.00012188,2]
[353694361,1739991114386,-500.0,0.00012188,2]
[353694362,1739991114396,-1492.46,0.00012188,2]
[353694363,1739991114405,-1211.99,0.00012188,2]
[353694364,1739991114414,-908.55,0.00012188,2]
[353694365,1739991114423,-1115.3,0.00012188,2]
[353694366,1739991114433,-622.28,0.00012188,2]
[353694367,1739991114443,-725.41,0.00012188,2]
[353694368,1739991114454,-1312.13,0.00012188,2]
[353694369,1739991114464,-500.0,0.00012188,2]
[353694370,1739991114473,-500.0,0.00012188,2]
[353694371,1739991114483,-1135.89,0.00012188,2]
[353694372,1739991114494,-500.0,0.00012188,2]
[353694373,1739991114504,-626.24,0.00012188,2]
[353694374,1739991114514,-873.22,0.00012188,2]
[353694375,1739991114524,-828.64,0.00012188,2]
[353694376,1739991114535,-842.88,0.00012188,2]
[353694377,1739991114545,-842.88,0.00012188,2]
[353694378,1739991114554,-842.88,0.00012188,2]
[353694379,1739991114564,-842.88,0.00012188,2]
[353694380,1739991114573,-842.92620724,0.00012188,2]
[353694381,1739991114583,-1067.13,0.00012188,2]
[353694382,1739991114592,-760.82,0.00012188,2]
[353694383,1739991114602,-959.81,0.00012188,2]
[353694384,1739991114611,-1130.2,0.00012188,2]
[353694385,1739991114621,-621.03,0.00012188,2]
[353694386,1739991114630,-837.8,0.00012188,2]
[353694387,1739991114640,-500.0,0.00012188,2]
[353694388,1739991114650,-763.25,0.00012188,2]
[353694389,1739991114659,-524.85,0.00012188,2]
[353694390,1739991114669,-687.97,0.00012188,2]
[353694391,1739991114679,-1453.26,0.00012188,2]
[353694392,1739991114690,-2178.41,0.00012188,2]
[353694393,1739991114700,-2978.68,0.00012188,2]
[353694394,1739991114709,-867.64,0.00012188,2]
[353694395,1739991114719,-500.0,0.00012188,2]
[353694396,1739991114728,-909.17,0.00012188,2]
[353694397,1739991114738,-274.45969214,0.00012188,2]
[353694398,1739991114747,-944.41,0.00012188,2]
[353694399,1739991114758,-1335.65,0.00012188,2]
[353694400,1739991114768,-1536.77,0.00012188,2]
[353694401,1739991114777,-1667.3,0.00012188,2]
[353694402,1739991114787,-2300.26,0.00012188,2]
[353694403,1739991114796,-1054.96,0.00012188,2]
[353694404,1739991114806,-3967.01,0.00012188,2]
[353694405,1739991114815,-2151.49,0.00012188,2]
[353694406,1739991114824,-500.0,0.00012188,2]
[353694407,1739991114833,-1026.98,0.00012188,2]
[353694408,1739991114843,-1717.95,0.00012188,2]
[353694409,1739991114852,-723.0,0.00012188,2]
[353694410,1739991114861,-858.82,0.00012188,2]
[353694411,1739991114871,-736.71,0.00012188,2]
[353694412,1739991114880,-731.07,0.00012188,2]
[353694413,1739991114890,-808.06,0.00012188,2]
[353694414,1739991114900,-500.0,0.00012188,2]
[353694415,1739991114911,-1003.52,0.00012188,2]
[353694416,1739991114922,-500.0,0.00012188,2]
[353694417,1739991114931,-1216.45,0.00012188,2]
[353694418,1739991114942,-897.65,0.00012188,2]
[353694419,1739991114952,-969.77,0.00012188,2]
[353694420,1739991114962,-1228.25,0.00012188,2]
[353694421,1739991114972,-597.7,0.00012188,2]
[353694422,1739991114982,-2264.91,0.00012188,2]
[353694423,1739991114992,-500.0,0.00012188,2]
[353694424,1739991115002,-1031.26,0.00012188,2]
[353694425,1739991115011,-813.49,0.00012188,2]
[353694426,1739991115021,-943.59,0.00012188,2]
[353694427,1739991115031,-807.9,0.00012188,2]
[353694428,1739991115040,-952.43,0.00012188,2]
[353694429,1739991115050,-1249.19,0.00012188,2]
[353694430,1739991115060,-1931.39,0.00012188,2]
[353694431,1739991115069,-699.69,0.00012188,2]
[353694432,1739991115079,-736.37,0.00012188,2]
[353694433,1739991115087,-1349.59,0.00012188,2]
[353694434,1739991115095,-2136.43,0.00012188,2]
[353694435,1739991115105,-1308.13,0.00012188,2]
[353694436,1739991115114,-763.21,0.00012188,2]
[353694437,1739991115123,-676.6,0.00012188,2]
[353694438,1739991115132,-1669.19,0.00012188,2]
[353694439,1739991115142,-2496.14,0.00012188,2]
[353694440,1739991115151,-838.79,0.00012188,2]
[353694441,1739991115161,-500.0,0.00012188,2]
[353694442,1739991115171,-844.7,0.00012188,2]
[353694443,1739991115181,-1038.95,0.00012188,2]
[353694444,1739991115191,-500.0,0.00012188,2]
[353694445,1739991115200,-643.34,0.00012188,2]
[353694446,1739991115211,-862.23,0.00012188,2]
[353694447,1739991115221,-1682.85,0.00012188,2]
[353694448,1739991115231,-972.98,0.00012188,2]
[353694449,1739991115241,-1170.77,0.00012188,2]
[353694450,1739991115251,-1036.38,0.00012188,2]
[353694451,1739991115260,-665.65,0.00012188,2]
[353694452,1739991115270,-500.0,0.00012188,2]
[353694453,1739991115281,-816.32,0.00012188,2]
[353694454,1739991115291,-1472.21,0.00012188,2]
[353694455,1739991115301,-1143.91,0.00012188,2]
[353694456,1739991115311,-500.0,0.00012188,2]
[353694457,1739991115321,-7684.69,0.00012188,2]
[353694458,1739991115332,-1239.55,0.00012188,2]
[353694459,1739991115341,-1609.82,0.00012188,2]
[353694460,1739991115351,-694.56,0.00012188,2]
[353694461,1739991115361,-1000.0,0.00012188,2]
[353694462,1739991115370,-677.2,0.00012188,2]
[353694463,1739991115379,-1545.54,0.00012188,2]
[353694464,1739991115389,-1288.85,0.00012188,2]
[353694465,1739991115399,-1349.76,0.00012188,2]
[353694466,1739991115408,-591.57,0.00012188,2]
[353694467,1739991115418,-1045.64,0.00012188,2]
[353694468,1739991115428,-544.71,0.00012188,2]
[353694469,1739991115438,-515.07,0.00012188,2]
[353694470,1739991115449,-500.0,0.00012188,2]
[353694471,1739991115461,-864.21,0.00012188,2]
[353694472,1739991115471,-1217.73,0.00012188,2]
[353694473,1739991115480,-1242.44,0.00012188,2]
[353694474,1739991115491,-608.9,0.00012188,2]
[353694475,1739991115501,-572.22373611,0.00012188,2]
[353694476,1739991115512,-500.0,0.00012188,2]
[353694477,1739991115523,-1333.33,0.00012188,2]
[353694478,1739991115534,-2099.28,0.00012188,2]
[353694479,1739991115545,-646.88,0.00012188,2]
[353694480,1739991115555,-1098.74,0.00012188,2]
[353694481,1739991115564,-631.78,0.00012188,2]
[353694482,1739991115574,-1305.78,0.00012188,2]
[353694483,1739991115584,-814.94,0.00012188,2]
[353694484,1739991115595,-591.42,0.00012188,2]
[353694485,1739991115604,-500.0,0.00012188,2]
[353694486,1739991115614,-1698.82,0.00012188,2]
[353694487,1739991115624,-1656.29,0.00012188,2]
[353694488,1739991115633,-958.07,0.00012188,2]
[353694489,1739991115643,-1140.78,0.00012188,2]
[353694490,1739991115653,-1343.79,0.00012188,2]
[353694491,1739991115663,-500.0,0.00012188,2]
[353694492,1739991115674,-1109.34,0.00012188,2]
[353694493,1739991115684,-940.17,0.00012188,2]
[353694494,1739991115694,-3616.83,0.00012188,2]
[353694495,1739991115704,-1068.94,0.00012188,2]
[353694496,1739991115714,-1192.02,0.00012188,2]
[353694497,1739991115724,-1134.66,0.00012188,2]
[353694498,1739991115734,-1387.53,0.00012188,2]
[353694499,1739991115745,-500.0,0.00012188,2]
[353694500,1739991115755,-525.63,0.00012188,2]
[353694501,1739991115765,-1867.51,0.00012188,2]
[353694502,1739991115775,-1262.86,0.00012188,2]
[353694503,1739991115785,-1225.46,0.00012188,2]
[353694504,1739991115795,-1283.85,0.00012188,2]
[353694505,1739991115804,-1033.15,0.00012188,2]
[353694506,1739991115813,-1890.5,0.00012188,2]
[353694507,1739991115823,-1247.13,0.00012188,2]
[353694508,1739991115832,-500.0,0.00012188,2]
[353694509,1739991115842,-953.52,0.00012188,2]
[353694510,1739991115852,-701.13,0.00012188,2]
[353694511,1739991115861,-606.51,0.00012188,2]
[353694512,1739991115870,-500.0,0.00012188,2]
[353694513,1739991115881,-837.99,0.00012188,2]
[353694514,1739991116073,-852.55,0.00012188,2]
[353694515,1739991116091,-1040.5,0.00012188,2]
[353694516,1739991116101,-626.51,0.00012188,2]
[353694517,1739991116110,-208.60831309,0.00012188,2]
[353694518,1739991116119,-155.15,0.00012188,2]
[353694519,1739991116129,-1225.45,0.00012188,2]
[353694520,1739991116138,-500.0,0.00012189,2]
[353694521,1739991116148,-711.12,0.00012189,2]
[353694522,1739991116158,-500.0,0.00012189,2]
[353694523,1739991116168,-567.75,0.00012189,2]
[353694524,1739991116178,-774.79,0.00012189,2]
[353694525,1739991116188,-648.92,0.00012189,2]
[353694526,1739991116198,-500.0,0.00012189,2]
[353694527,1739991116208,-500.0,0.00012189,2]
[353694528,1739991116218,-939.76,0.00012189,2]
[353694529,1739991116228,-500.0,0.00012189,2]
[353694530,1739991116238,-726.31,0.00012189,2]
[353694531,1739991116248,-527.6,0.00012189,2]
[353694532,1739991116258,-637.14,0.00012189,2]
[353694533,1739991116268,-501.4,0.00012189,2]
[353694534,1739991116279,-550.13,0.00012189,2]
[353694535,1739991116289,-605.64,0.00012189,2]
[353694536,1739991116300,-607.38764229,0.00012189,2]
[353694537,1739991116310,-608.69,0.00012189,2]
[353694538,1739991116320,-670.06,0.00012189,2]
[353694539,1739991116329,-500.0,0.00012189,2]
[353694540,1739991116339,-500.0,0.00012189,2]
[353694541,1739991116349,-500.0,0.00012189,2]
[353694542,1739991116358,-741.15,0.00012189,2]
[353694543,1739991116367,-917.52,0.00012189,2]
[353694544,1739991116377,-653.65,0.00012189,2]
[353694545,1739991116386,-500.0,0.00012189,2]
[353694546,1739991116396,-575.12,0.00012189,2]
[353694547,1739991116406,-500.0,0.00012189,2]
[353694548,1739991116415,-1008.4,0.00012189,2]
[353694549,1739991116424,-648.67,0.00012189,2]
[353694550,1739991116434,-709.82,0.00012189,2]
[353694551,1739991116444,-613.64259653,0.00012189,2]
[353694552,1739991116457,-759.69,0.00012189,2]
[353694553,1739991116466,-939.45,0.00012189,2]
[353694554,1739991116476,-934.24,0.00012189,2]
[353694555,1739991116486,-1565.74,0.00012189,2]
[353694556,1739991116497,-779.39,0.00012189,2]
[353694557,1739991116506,-1114.74,0.00012189,2]
[353694558,1739991116515,-1307.87,0.00012189,2]
[353694559,1739991116524,-319.07,0.00012189,2]
[353694560,1739991116534,-1563.31,0.00012189,2]
[353694561,1739991116543,-626.84,0.00012189,2]
[353694562,1739991116553,-500.0,0.00012189,2]
[353694563,1739991116563,-1098.62,0.00012189,2]
[353694564,1739991116572,-602.42,0.00012189,2]
[353694565,1739991116581,-1563.53,0.00012189,2]
[353694566,1739991116594,-341.65201313,0.00012189,2]
[353694567,1739991116604,-1617.89,0.00012189,2]
[353694568,1739991116614,-568.32,0.00012189,2]
[353694569,1739991116624,-1902.45,0.00012189,2]
[353694570,1739991116633,-500.0,0.00012189,2]
[353694571,1739991116643,-997.72,0.00012189,2]
[353694572,1739991116653,-1224.85,0.00012189,2]
[353694573,1739991116662,-1076.75,0.00012189,2]
[353694574,1739991116672,-1287.1,0.00012189,2]
[353694575,1739991116682,-507.43,0.00012189,2]
[353694576,1739991116693,-1834.21,0.00012189,2]
[353694577,1739991116703,-1131.11,0.00012189,2]
[353694578,1739991116712,-1818.6,0.00012189,2]
[353694579,1739991116722,-500.0,0.00012189,2]
[353694580,1739991116732,-967.39,0.00012189,2]
[353694581,1739991116742,-613.64,0.00012189,2]
[353694582,1739991116751,-500.0,0.00012189,2]
[353694583,1739991116761,-1954.75,0.00012189,2]
[353694584,1739991116771,-1010.26,0.00012189,2]
[353694585,1739991116780,-500.0,0.00012189,2]
[353694586,1739991116790,-651.03,0.00012189,2]
[353694587,1739991116800,-825.62,0.00012189,2]
[353694588,1739991116809,-500.0,0.00012189,2]
[353694589,1739991116819,-500.0,0.00012189,2]
[353694590,1739991116828,-500.0,0.00012189,2]
[353694591,1739991116838,-1110.11,0.00012189,2]
[353694592,1739991116847,-774.36,0.00012189,2]
[353694593,1739991116857,-811.92,0.00012189,2]
[353694594,1739991116867,-1151.56,0.00012189,2]
[353694595,1739991116876,-500.0,0.00012189,2]
[353694596,1739991116886,-1042.18,0.00012189,2]
[353694597,1739991116895,-500.0,0.00012189,2]
[353694598,1739991116905,-534.83,0.00012189,2]
[353694599,1739991116915,-619.91,0.00012189,2]
[353694600,1739991116924,-533.51,0.00012189,2]
[353694601,1739991116933,-581.26,0.00012189,2]
[353694602,1739991116943,-500.0,0.00012189,2]
[353694603,1739991116953,-500.0,0.00012189,2]
[353694604,1739991116962,-500.0,0.00012189,2]
[353694605,1739991116971,-849.02,0.00012189,2]
[353694606,1739991116981,-563.08,0.00012189,2]
[353694607,1739991116990,-758.16,0.00012189,2]
[353694608,1739991116999,-500.0,0.00012189,2]
[353694609,1739991117009,-500.0,0.00012189,2]
[353694610,1739991117019,-410.61314925,0.00012191,2]
[353694611,1739991117029,-1893.0,0.00012243,2]
[353694612,1739991117039,-440.22,0.00012262,2]
[353694613,1739991117049,-775.98,0.00012262,2]
[353694614,1739991117059,-775.98,0.00012262,2]
[353694615,1739991117068,-440.22,0.00012262,2]
[353694616,1739991117078,-440.22,0.00012262,2]
[353694617,1739991117087,-775.98,0.00012262,2]
[353694618,1739991117097,-1285.43,0.00012269,2]
[353694619,1739991117107,-2055.78,0.00012269,2]
[353694620,1739991117117,-1176.26,0.00012269,2]
[353694621,1739991117127,-1598.02,0.00012269,2]
[353694622,1739991117136,-1177.64,0.00012269,2]
[353694623,1739991117146,-1728.13,0.00012269,2]
[353694624,1739991117155,-1464.57,0.00012269,2]
[353694625,1739991117164,-988.1,0.00012269,2]
[353694626,1739991117173,-1523.71,0.00012269,2]
[353694627,1739991117182,-1697.79,0.00012269,2]
[353694628,1739991117192,-914.84,0.00012269,2]
[353694629,1739991117202,-1345.01,0.00012269,2]
[353694630,1739991117212,-1899.5,0.00012269,2]
[353694631,1739991117221,-835.97,0.00012269,2]
[353694632,1739991117231,-1253.59,0.00012269,2]
[353694633,1739991117240,-676.35,0.00012269,2]
[353694634,1739991117250,-1199.2,0.00012269,2]
[353694635,1739991117259,-1444.06,0.00012269,2]
[353694636,1739991117269,-1165.51,0.00012269,2]
[353694637,1739991117281,-1110.09,0.00012269,2]
[353694638,1739991117291,-955.77,0.00012269,2]
[353694639,1739991117301,-1702.36,0.00012269,2]
[353694640,1739991117311,-500.0,0.00012269,2]
[353694641,1739991117321,-1068.07,0.00012269,2]
[353694642,1739991117330,-541.29,0.00012269,2]
[353694643,1739991117340,-1380.32,0.00012269,2]
[353694644,1739991117350,-564.03,0.0001227,2]
[353694645,1739991117360,-500.0,0.0001227,2]
[353694646,1739991117370,-958.09,0.0001227,2]
[353694647,1739991117380,-500.0,0.0001227,2]
[353694648,1739991117390,-638.44,0.0001227,2]
[353694649,1739991117399,-1305.17,0.0001227,2]
[353694650,1739991117408,-500.0,0.0001227,2]
[353694651,1739991117418,-500.0,0.0001227,2]
[353694652,1739991117427,-335.282174,0.0001227,2]
[353694653,1739991117436,-1013.4,0.0001227,2]
[353694654,1739991117456,-445.363227,0.0001227,2]
[353694655,1739991117466,-800.82,0.0001227,2]
[353694656,1739991117476,-566.24,0.0001227,2]
[353694657,1739991117485,-500.0,0.0001227,2]
[353694658,1739991117495,-705.7,0.0001227,2]
[353694659,1739991117505,-1291.22,0.0001227,2]
[353694660,1739991117515,-1007.94,0.0001227,2]
[353694661,1739991117525,-500.0,0.0001227,2]
[353694662,1739991117535,-1100.17,0.0001227,2]
[353694663,1739991117544,-1164.92,0.0001227,2]
[353694664,1739991117554,-1009.77,0.0001227,2]
[353694665,1739991117563,-1086.24,0.0001227,2]
[353694666,1739991117573,-1103.11,0.0001227,2]
[353694667,1739991117583,-500.0,0.0001227,2]
[353694668,1739991117593,-689.09,0.0001227,2]
[353694669,1739991117603,-1109.15,0.0001227,2]
[353694670,1739991117613,-752.25,0.0001227,2]
[353694671,1739991117623,-712.53,0.0001227,2]
[353694672,1739991117632,-844.15,0.0001227,2]
[353694673,1739991117641,-1035.94,0.0001227,2]
[353694674,1739991117651,-1177.99,0.0001227,2]
[353694675,1739991117661,-970.06,0.0001227,2]
[353694676,1739991117670,-842.16,0.0001227,2]
[353694677,1739991117680,-1231.95,0.0001227,2]
[353694678,1739991117692,-833.68,0.0001227,2]
[353694679,1739991117702,-1384.51,0.0001227,2]
[353694680,1739991117712,-992.43,0.0001227,2]
[353694681,1739991117722,-700.4,0.0001227,2]
[353694682,1739991117731,-896.41,0.0001227,2]
[353694683,1739991117741,-500.0,0.0001227,2]
[353694684,1739991117751,-835.28,0.0001227,2]
[353694685,1739991117761,-730.1,0.0001227,2]
[353694686,1739991117770,-638.47,0.0001227,2]
[353694687,1739991117779,-722.91,0.0001227,2]
[353694688,1739991117789,-700.98,0.0001227,2]
[353694689,1739991117799,-500.0,0.0001227,2]
[353694690,1739991117809,-887.61,0.0001227,2]
[353694691,1739991117819,-1299.23,0.0001227,2]
[353694692,1739991117828,-537.11,0.0001227,2]
[353694693,1739991117839,-1023.26,0.0001227,2]
[353694694,1739991117849,-500.0,0.0001227,2]
[353694695,1739991117859,-1193.06,0.0001227,2]
[353694696,1739991117869,-809.28,0.0001227,2]
[353694697,1739991117879,-569.98,0.0001227,2]
[353694698,1739991117889,-947.29,0.0001227,2]
[353694699,1739991117899,-738.85,0.0001227,2]
[353694700,1739991117911,-500.0,0.0001227,2]
[353694701,1739991117920,-819.36,0.0001227,2]
[353694702,1739991117930,-504.01,0.0001227,2]
[353694703,1739991117941,-841.31,0.0001227,2]
[353694704,1739991117951,-716.57,0.0001227,2]
[353694705,1739991117961,-1059.78,0.0001227,2]
[353694706,1739991117971,-685.17,0.0001227,2]
[353694707,1739991117981,-948.49,0.0001227,2]
[353694708,1739991117991,-1210.93,0.0001227,2]
[353694709,1739991118001,-1232.61,0.0001227,2]
[353694710,1739991118011,-660.75,0.0001227,2]
[353694711,1739991118021,-722.62,0.0001227,2]
[353694712,1739991118032,-856.89,0.0001227,2]
[353694713,1739991118042,-529.4,0.0001227,2]
[353694714,1739991118051,-500.0,0.0001227,2]
[353694715,1739991118061,-500.0,0.0001227,2]
[353694716,1739991118071,-1123.65,0.0001227,2]
[353694717,1739991118081,-767.14,0.0001227,2]
[353694718,1739991118090,-838.25,0.0001227,2]
[353694719,1739991118100,-857.74,0.0001227,2]
[353694720,1739991118110,-500.0,0.0001227,2]
[353694721,1739991118119,-702.31,0.0001227,2]
[353694722,1739991118129,-766.99,0.0001227,2]
[353694723,1739991118139,-1022.47,0.0001227,2]
[353694724,1739991118149,-1271.18,0.0001227,2]
[353694725,1739991118159,-562.14,0.0001227,2]
[353694726,1739991118169,-1255.93,0.0001227,2]
[353694727,1739991118178,-735.72,0.0001227,2]
[353694728,1739991118188,-1023.77,0.0001227,2]
[353694729,1739991118199,-500.0,0.0001227,2]
[353694730,1739991118210,-741.16,0.0001227,2]
[353694731,1739991118220,-500.0,0.0001227,2]
[353694732,1739991118230,-1492.46,0.0001227,2]
[353694733,1739991118240,-1211.99,0.0001227,2]
[353694734,1739991118250,-908.55,0.0001227,2]
[353694735,1739991118260,-1115.3,0.0001227,2]
[353694736,1739991118270,-622.28,0.0001227,2]
[353694737,1739991118283,-725.41,0.0001227,2]
[353694738,1739991118293,-1312.13,0.0001227,2]
[353694739,1739991118302,-500.0,0.0001227,2]
[353694740,1739991118312,-1135.89,0.0001227,2]
[353694741,1739991118323,-500.0,0.0001227,2]
[353694742,1739991118334,-441.9,0.0001227,2]
[353694743,1739991118344,-626.24,0.0001227,2]
[353694744,1739991118354,-873.22,0.0001227,2]
[353694745,1739991118364,-828.64,0.0001227,2]
[353694746,1739991118374,-1067.13,0.0001227,2]
[353694747,1739991118384,-760.82,0.0001227,2]
[353694748,1739991118394,-959.81,0.0001227,2]
[353694749,1739991118404,-1130.2,0.0001227,2]
[353694750,1739991118414,-621.03,0.0001227,2]
[353694751,1739991118423,-837.8,0.0001227,2]
[353694752,1739991118433,-611.03,0.0001227,2]
[353694753,1739991118446,-524.85,0.0001227,2]
[353694754,1739991118459,-687.97,0.0001227,2]
[353694755,1739991118470,-763.25,0.0001227,2]
[353694756,1739991118480,-1453.26,0.0001227,2]
[353694757,1739991118491,-2178.41,0.0001227,2]
[353694758,1739991118502,-2978.68,0.0001227,2]
[353694759,1739991118512,-867.64,0.0001227,2]
[353694760,1739991118522,-500.0,0.0001227,2]
[353694761,1739991118533,-909.17,0.0001227,2]
[353694762,1739991118544,-944.41,0.0001227,2]
[353694763,1739991118625,-1335.65,0.0001227,2]
[353694764,1739991118636,-1536.77,0.0001227,2]
[353694765,1739991118647,-1667.3,0.0001227,2]
[353694766,1739991118656,-2300.26,0.0001227,2]
[353694767,1739991118666,-1054.96,0.0001227,2]
[353694768,1739991118676,-3967.01,0.0001227,2]
[353694769,1739991118687,-2151.49,0.0001227,2]
[353694770,1739991118698,-500.0,0.0001227,2]
[353694771,1739991118708,-1026.98,0.0001227,2]
[353694772,1739991118718,-1717.95,0.0001227,2]
[353694773,1739991118728,-723.0,0.0001227,2]
[353694774,1739991118738,-858.82,0.0001227,2]
[353694775,1739991118748,-736.71,0.0001227,2]
[353694776,1739991118758,-731.07,0.0001227,2]
[353694777,1739991118768,-808.06,0.0001227,2]
[353694778,1739991118778,-500.0,0.0001227,2]
[353694779,1739991118788,-1003.52,0.0001227,2]
[353694780,1739991118798,-500.0,0.0001227,2]
[353694781,1739991118807,-1216.45,0.0001227,2]
[353694782,1739991118817,-897.65,0.0001227,2]
[353694783,1739991118827,-969.77,0.0001227,2]
[353694784,1739991118837,-1228.25,0.0001227,2]
[353694785,1739991118846,-597.7,0.0001227,2]
[353694786,1739991118855,-2264.91,0.0001227,2]
[353694787,1739991118865,-500.0,0.0001227,2]
[353694788,1739991118875,-1031.26,0.0001227,2]
[353694789,1739991118886,-813.49,0.0001227,2]
[353694790,1739991118895,-943.59,0.0001227,2]
[353694791,1739991118904,-807.9,0.0001227,2]
[353694792,1739991118913,-952.43,0.0001227,2]
[353694793,1739991118923,-1249.19,0.0001227,2]
[353694794,1739991118932,-1931.39,0.0001227,2]
[353694795,1739991118944,-699.69,0.0001227,2]
[353694796,1739991118955,-736.37,0.0001227,2]
[353694797,1739991118965,-1349.59,0.0001227,2]
[353694798,1739991118974,-2136.43,0.0001227,2]
[353694799,1739991118985,-1308.13,0.0001227,2]
[353694800,1739991118994,-763.21,0.0001227,2]
[353694801,1739991119004,-676.6,0.0001227,2]
[353694802,1739991119014,-1669.19,0.0001227,2]
[353694803,1739991119024,-2496.14,0.0001227,2]
[353694804,1739991119034,-838.79,0.0001227,2]
[353694805,1739991119044,-500.0,0.0001227,2]
[353694806,1739991119054,-844.7,0.0001227,2]
[353694807,1739991119063,-1038.95,0.0001227,2]
[353694808,1739991119072,-500.0,0.0001227,2]
[353694809,1739991119081,-643.34,0.0001227,2]
[353694810,1739991119091,-862.23,0.0001227,2]
[353694811,1739991119102,-1682.85,0.0001227,2]
[353694812,1739991119111,-972.98,0.0001227,2]
[353694813,1739991119121,-1170.77,0.0001227,2]
[353694814,1739991119131,-1036.38,0.0001227,2]
[353694815,1739991119141,-665.65,0.0001227,2]
[353694816,1739991119151,-500.0,0.0001227,2]
[353694817,1739991119160,-816.32,0.0001227,2]
[353694818,1739991119170,-1472.21,0.0001227,2]
[353694819,1739991119179,-1143.91,0.0001227,2]
[353694820,1739991119189,-500.0,0.0001227,2]
[353694821,1739991119199,-7684.69,0.0001227,2]
[353694822,1739991119210,-1239.55,0.0001227,2]
[353694823,1739991119219,-1609.82,0.0001227,2]
[353694824,1739991119230,-694.56,0.0001227,2]
[353694825,1739991119239,-1000.0,0.0001227,2]
[353694826,1739991119250,-677.2,0.0001227,2]
[353694827,1739991119260,-1545.54,0.0001227,2]
[353694828,1739991119269,-1349.76,0.0001227,2]
[353694829,1739991119281,-1288.85,0.0001227,2]
[353694830,1739991119291,-591.57,0.0001227,2]
[353694831,1739991119301,-1045.64,0.0001227,2]
[353694832,1739991119311,-544.71,0.0001227,2]
[353694833,1739991119320,-515.07,0.0001227,2]
[353694834,1739991119330,-500.0,0.0001227,2]
[353694835,1739991119339,-864.21,0.0001227,2]
[353694836,1739991119349,-1217.73,0.0001227,2]
[353694837,1739991119359,-1242.44,0.0001227,2]
[353694838,1739991119369,-608.9,0.0001227,2]